bitfinex-derivatives/quotes_BTCF0:USTF0_20251023
["timestamp","ask_amount","ask_price","bid_price","bid_amount"]
[1761258533987,0.05876,110050.0,110040.0,0.95963096]
[1761258534390,0.05876,110050.0,110040.0,0.3216]
[1761258534391,1.05464266,110050.0,110040.0,0.3216]
[1761258535087,0.1500255,110040.0,110030.0,0.18645936]
[1761258535693,0.1500255,110040.0,110030.0,0.50809936]
[1761258538596,0.1500255,110040.0,110030.0,0.50797936]
[1761258540293,0.1500299,110030.0,110020.0,0.18645936]
[1761258540496,0.5108299,110030.0,110020.0,0.50793936]
[1761258540692,0.05917,110030.0,110020.0,0.50793936]
[1761258540888,0.0461,110030.0,110020.0,0.87640936]
[1761258541288,0.0461,110030.0,110020.0,0.95960746]
[1761258541289,0.05917,110030.0,110020.0,0.95960746]
[1761258541488,0.06017,110030.0,110020.0,0.95960746]
[1761258541998,0.06017,110030.0,110020.0,0.97281979]
[1761258542597,0.02394,110030.0,110020.0,0.98048979]
[1761258542998,0.0471,110030.0,110020.0,0.98048979]
[1761258543298,0.06017,110030.0,110020.0,0.97281979]
[1761258543695,0.06017,110030.0,110020.0,0.88195169]
[1761258543893,0.06017,110030.0,110020.0,0.19967169]
[1761258544397,0.06017,110030.0,110020.0,0.52107169]
[1761258544703,0.06017,110030.0,110020.0,0.65156458]
[1761258544906,0.06017,110030.0,110020.0,0.66476816]
[1761258545296,0.56494229,110030.0,110020.0,0.19939347]
[1761258545604,0.56494229,110030.0,110020.0,0.52079347]
[1761258545803,0.42097,110030.0,110020.0,0.66476576]
[1761258546001,0.42097,110030.0,110020.0,0.34336576]
[1761258546203,0.42097,110030.0,110020.0,0.52079347]
[1761258546402,0.42097,110030.0,110020.0,0.66476576]
[1761258547705,0.42097,110030.0,110020.0,0.52079347]
[1761258548106,0.42097,110030.0,110020.0,0.37682118]
[1761258548304,0.42097,110030.0,110020.0,0.52079347]
[1761258550611,0.41997,110030.0,110020.0,0.52079347]
[1761258550907,0.42097,110030.0,110020.0,0.52079347]
[1761258551708,0.42097,110030.0,110020.0,0.6647837]
[1761258552412,0.42097,110030.0,110020.0,0.6647037]
[1761258552711,0.42097,110030.0,110020.0,0.52073141]
[1761258553898,0.42097,110030.0,110020.0,0.6647037]
[1761258554097,0.06017,110030.0,110020.0,0.6647037]
[1761258554304,0.42097,110030.0,110020.0,0.6647037]
[1761258556410,0.41997,110030.0,110020.0,0.6647037]
[1761258557316,0.42097,110030.0,110020.0,0.6647037]
[1761258558713,0.06017,110030.0,110020.0,1.1163718]
[1761258559316,0.0471,110030.0,110020.0,1.26034409]
[1761258559611,0.0461,110030.0,110020.0,1.26034409]
[1761258559802,0.0461,110030.0,110020.0,1.1163718]
[1761258560609,0.02294,110030.0,110020.0,1.1163718]
[1761258560907,0.41997,110040.0,110020.0,1.35120589]
[1761258561107,0.0461,110040.0,110030.0,0.79525438]
[1761258561313,0.0461,110040.0,110030.0,0.8084735]
[1761258562212,0.0461,110040.0,110030.0,0.80856051]
[1761258562511,0.0461,110040.0,110030.0,0.66458822]
[1761258563014,0.06,110040.0,110030.0,0.65115822]
[1761258563214,0.061,110040.0,110030.0,0.79513051]
[1761258564314,0.061,110040.0,110030.0,0.65115822]
[1761258565314,0.001,110040.0,110030.0,1.3458228]
[1761258565515,0.001,110040.0,110030.0,1.25813868]
[1761258565918,0.001,110040.0,110030.0,1.26731677]
[1761258568017,0.001,110040.0,110030.0,1.25813868]
[1761258568613,0.001,110040.0,110030.0,1.26720611]
[1761258568814,0.001,110040.0,110030.0,1.25813868]
[1761258569112,0.02314,110040.0,110030.0,1.25813868]
[1761258569308,0.02314,110040.0,110030.0,1.22587313]
[1761258569917,0.001,110040.0,110030.0,1.22587313]
[1761258570418,0.001,110040.0,110030.0,1.58667313]
[1761258572614,0.04526,110040.0,110030.0,1.58667313]
[1761258573116,0.02217,110040.0,110030.0,1.58667313]
[1761258575219,0.001,110040.0,110030.0,1.29872855]
[1761258575518,0.02217,110040.0,110030.0,1.58667313]
[1761258576020,0.04526,110040.0,110030.0,1.58667313]
[1761258576417,0.04526,110040.0,110030.0,1.18667313]
[1761258576611,0.04526,110040.0,110030.0,1.50767313]
[1761258581725,0.04526,110040.0,110030.0,0.78607313]
[1761258581926,0.04526,110040.0,110030.0,1.14687313]
[1761258582726,0.20221229,110040.0,110030.0,0.41632613]
[1761258582921,0.05824,110040.0,110030.0,0.99618094]
[1761258585622,0.05824,110040.0,110030.0,0.85220865]
[1761258585827,0.05824,110040.0,110030.0,0.99618094]
[1761258586626,0.20221229,110040.0,110030.0,0.58432104]
[1761258586827,0.20221229,110040.0,110030.0,0.88117842]
[1761258586828,0.05824,110040.0,110030.0,0.88117842]
[1761258587623,0.20221229,110040.0,110030.0,0.88117842]
[1761258589942,0.20221229,110040.0,110030.0,0.52037842]
[1761258590318,0.20221229,110040.0,110030.0,0.88117842]
[1761258590926,0.05824,110040.0,110030.0,0.88117842]
[1761258592631,0.05724,110040.0,110030.0,0.88117842]
[1761258592933,0.0817489,110040.0,110030.0,0.88117842]
[1761258595332,0.0817489,110040.0,110030.0,0.97203832]
[1761258597539,0.05724,110040.0,110030.0,0.99606094]
[1761258597734,0.05724,110040.0,110030.0,1.14675323]
[1761258597735,0.02117,110040.0,110030.0,1.14675323]
[1761258598837,0.04317,110040.0,110030.0,1.14675323]
[1761258599537,0.04317,110040.0,110030.0,1.14679352]
[1761258599736,0.0823989,110050.0,110040.0,0.1119616]
[1761258599935,0.0694189,110050.0,110040.0,0.8017826]
[1761258600130,0.0245089,110050.0,110040.0,0.8017826]
[1761258600540,0.11526362,110060.0,110040.0,0.91665682]
[1761258600740,0.11526362,110060.0,110050.0,0.95841569]
[1761258601038,0.11526045,110060.0,110050.0,0.97176211]
[1761258601536,0.02450573,110060.0,110050.0,1.1234044]
[1761258601733,0.08260573,110060.0,110050.0,0.65108211]
[1761258602040,0.08260573,110060.0,110050.0,0.97192211]
[1761258602634,0.08360573,110060.0,110050.0,0.97192211]
[1761258602838,0.08360573,110060.0,110050.0,0.97191584]
[1761258603338,0.08360573,110060.0,110050.0,0.65107584]
[1761258603539,0.08360573,110060.0,110050.0,0.97191584]
[1761258604038,0.08360573,110060.0,110050.0,0.9719146]
[1761258604637,0.07041573,110060.0,110050.0,0.9795846]
[1761258604944,0.07041573,110060.0,110050.0,0.97947514]
[1761258605241,0.02550573,110060.0,110050.0,0.97947514]
[1761258605843,0.08360573,110060.0,110050.0,0.97180514]
[1761258606237,0.001,110060.0,110050.0,0.97180514]
[1761258606847,0.02930573,110070.0,110060.0,0.0908351]
[1761258607035,0.02930573,110070.0,110060.0,0.65767684]
[1761258608244,0.0048,110070.0,110060.0,0.65767684]
[1761258608647,0.0048,110070.0,110060.0,0.66682228]
[1761258608844,0.0048,110070.0,110060.0,0.65767684]
[1761258609435,0.0048,110070.0,110060.0,0.80153967]
[1761258609637,0.0048,110070.0,110060.0,0.68194736]
[1761258610242,0.0048,110070.0,110060.0,0.65767684]
[1761258610941,0.02450573,110090.0,110080.0,0.1406086]
[1761258611245,0.08260573,110090.0,110080.0,0.97170034]
[1761258612353,0.0581,110090.0,110080.0,0.97170034]
[1761258613048,0.04491,110090.0,110080.0,0.97170034]
[1761258613242,0.04491,110090.0,110080.0,0.97973034]
[1761258613441,0.04491,110090.0,110080.0,0.65861034]
[1761258613642,0.04491,110090.0,110080.0,0.97965034]
[1761258614343,0.04491,110090.0,110080.0,0.65861034]
[1761258614848,0.0581,110090.0,110080.0,0.65094034]
[1761258615048,0.0581,110090.0,110080.0,0.97198034]
[1761258615539,0.01319,110100.0,110080.0,0.97965034]
[1761258615540,0.0581,110100.0,110080.0,0.97965034]
[1761258615742,0.0581,110100.0,110090.0,0.18598283]
[1761258615943,0.0581,110100.0,110090.0,0.52032174]
[1761258616445,0.0581,110100.0,110090.0,0.97193214]
[1761258620655,0.0581,110100.0,110090.0,0.88112174]
[1761258621255,0.0581,110100.0,110090.0,0.88104174]
[1761258621754,0.0581,110100.0,110090.0,0.52024174]
[1761258621951,0.0581,110100.0,110090.0,0.19932174]
[1761258622158,0.0581,110100.0,110090.0,0.52020174]
[1761258622851,0.0581,110100.0,110090.0,0.61100984]
[1761258623457,0.0581,110100.0,110090.0,0.52020174]
[1761258624256,0.0581,110100.0,110090.0,0.97180984]
[1761258630259,0.05157867,110110.0,110090.0,0.97164984]
[1761258630260,0.09566867,110110.0,110090.0,0.97164984]
[1761258630452,0.09566867,110110.0,110090.0,1.06245184]
[1761258630960,0.09558924,110110.0,110100.0,0.18608283]
[1761258631162,0.09558924,110110.0,110100.0,0.65102164]
[1761258631353,0.0865063,110110.0,110100.0,0.65102164]
[1761258631557,0.0865063,110110.0,110100.0,0.65774164]
[1761258631558,0.0733163,110110.0,110100.0,0.65774164]
[1761258631754,0.02753,110110.0,110100.0,0.65774164]
[1761258632063,0.0048,110110.0,110100.0,0.65774164]
[1761258633160,0.0048,110110.0,110100.0,0.80160447]
[1761258633463,0.0048,110110.0,110100.0,0.65774164]
[1761258633766,0.04889,110110.0,110100.0,0.65774164]
[1761258636361,0.02753,110110.0,110100.0,0.65774164]
[1761258636566,0.04889,110110.0,110100.0,0.65774164]
[1761258637566,0.02753,110110.0,110100.0,0.65774164]
[1761258638271,0.04889,110110.0,110100.0,0.65774164]
[1761258638474,0.04889,110110.0,110100.0,0.97838164]
[1761258639371,0.04889,110110.0,110100.0,0.97834164]
[1761258640268,0.04889,110110.0,110100.0,0.65774164]
[1761258640465,0.04889,110110.0,110100.0,0.97830164]
[1761258641666,0.0048,110110.0,110100.0,1.00248079]
[1761258641861,0.0048,110110.0,110100.0,0.97830164]
[1761258642462,0.05538472,110130.0,110120.0,0.1406771]
[1761258642663,0.03265472,110130.0,110120.0,0.97931884]
[1761258642966,0.0571262,110130.0,110120.0,0.97931884]
[1761258643366,0.02447148,110130.0,110120.0,0.97931884]
[1761258643568,0.0571262,110130.0,110120.0,0.97931884]
[1761258644167,0.0571262,110140.0,110130.0,0.1329989]
[1761258644367,0.09099778,110140.0,110130.0,0.88102174]
[1761258644768,0.08174148,110140.0,110130.0,0.97180064]
[1761258646567,0.06856148,110140.0,110130.0,0.97180064]
[1761258646774,0.08174148,110140.0,110130.0,0.97180064]
[1761258647564,0.02447148,110140.0,110130.0,0.97180064]
[1761258647768,0.08232773,110150.0,110140.0,0.04894]
[1761258647964,0.0619262,110150.0,110140.0,0.29691244]
[1761258648278,0.02927148,110150.0,110140.0,0.29691244]
[1761258648472,0.0048,110150.0,110140.0,0.29691244]
[1761258648973,0.0048,110150.0,110140.0,0.15304961]
[1761258649175,0.0048,110150.0,110140.0,0.51384961]
[1761258649470,0.02753,110150.0,110140.0,0.51384961]
[1761258649663,0.04889,110150.0,110140.0,0.83468961]
[1761258649867,0.04889,110150.0,110140.0,0.97855244]
[1761258650164,0.02447148,110170.0,110160.0,0.1436342]
[1761258650364,0.01798,110190.0,110170.0,0.0907408]
[1761258650677,0.06207,110190.0,110180.0,0.82670283]
[1761258650870,0.06207,110190.0,110180.0,0.93077944]
[1761258651274,0.01798,110190.0,110180.0,1.33077944]
[1761258651471,0.06207,110190.0,110180.0,0.93077944]
[1761258651775,0.01798,110190.0,110180.0,0.93077944]
[1761258652372,0.01798,110190.0,110180.0,1.33077944]
[1761258652373,0.0048,110190.0,110180.0,1.33077944]
[1761258652580,0.0048,110190.0,110180.0,1.47464227]
[1761258652971,0.0048,110190.0,110180.0,1.07464227]
[1761258653175,0.01774,110190.0,110180.0,0.93077944]
[1761258654278,0.0048,110190.0,110180.0,0.93077944]
[1761258657370,0.0048,110190.0,110180.0,1.47464227]
[1761258657877,0.01318,110210.0,110200.0,0.0907213]
[1761258658078,0.01318,110210.0,110200.0,0.57060304]
[1761258659072,0.01318,110210.0,110200.0,0.57160304]
[1761258659387,0.01318,110210.0,110200.0,0.37513891]
[1761258659388,0.20120283,110210.0,110200.0,0.37513891]
[1761258659684,0.05734,110210.0,110200.0,0.10506021]
[1761258660483,0.05734,110210.0,110200.0,0.24892304]
[1761258660683,0.05734,110210.0,110200.0,0.24883096]
[1761258660981,0.05734,110210.0,110200.0,0.01424683]
[1761258661182,1.10586566,110210.0,110200.0,0.01289304]
[1761258661482,0.05734,110170.0,110160.0,0.4143132]
[1761258661982,0.05734,110170.0,110160.0,0.0907532]
[1761258662779,0.05734,110170.0,110160.0,0.0917532]
[1761258663278,0.05734,110170.0,110160.0,0.001]
[1761258663480,0.56200283,110170.0,110160.0,0.001]
[1761258663880,0.97128566,110170.0,110160.0,0.001]
[1761258664076,0.05734,110160.0,110150.0,6.708e-05]
[1761258664278,0.88556283,110160.0,110150.0,6.708e-05]
[1761258664475,1.28556283,110160.0,110150.0,6.708e-05]
[1761258664788,1.42906368,110160.0,110150.0,6.708e-05]
[1761258664981,0.05734,110150.0,110140.0,0.00453947]
[1761258665184,0.56182184,110150.0,110140.0,0.00453947]
[1761258665988,0.56188892,110150.0,110140.0,0.00453947]
[1761258666688,0.41820708,110150.0,110140.0,0.00453947]
[1761258667790,0.41920708,110150.0,110140.0,0.00453947]
[1761258668182,0.41820708,110150.0,110140.0,0.00453947]
[1761258668382,0.59880497,110150.0,110140.0,0.00453947]
[1761258669492,0.59980497,110150.0,110140.0,0.00453947]
[1761258670987,0.05734,110130.0,110120.0,0.3608]
[1761258671188,0.05734,110120.0,110110.0,0.3608]
[1761258671390,0.03539,110110.0,110100.0,0.48031877]
[1761258671588,0.3807,110110.0,110100.0,0.45614482]
[1761258671998,0.3807,110110.0,110100.0,0.36534112]
[1761258672388,0.56036497,110110.0,110100.0,0.36534112]
[1761258673395,0.38076708,110110.0,110100.0,0.36534112]
[1761258673600,0.38076708,110110.0,110100.0,0.36634112]
[1761258673801,0.38076708,110110.0,110100.0,0.36834112]
[1761258675300,0.01300708,110110.0,110100.0,0.63874271]
[1761258675906,0.01300708,110110.0,110100.0,1.03874271]
[1761258676602,0.05740708,110110.0,110100.0,1.03874271]
[1761258680414,0.05740708,110110.0,110100.0,0.85914482]
[1761258688014,0.05740708,110110.0,110100.0,0.45914482]
[1761258688725,0.23700497,110110.0,110100.0,0.45914482]
[1761258689021,0.05740708,110110.0,110100.0,0.45914482]
[1761258690323,0.05740708,110110.0,110100.0,0.00754112]
[1761258690324,0.23700497,110110.0,110100.0,0.00754112]
[1761258690918,0.24613925,110110.0,110100.0,0.00754112]
[1761258691126,0.60693925,110110.0,110100.0,0.00754112]
[1761258692115,0.42734136,110110.0,110100.0,0.00754112]
[1761258693217,0.06654136,110110.0,110100.0,0.09834482]
[1761258693427,0.42734136,110110.0,110100.0,0.09834482]
[1761258694519,0.42734136,110110.0,110100.0,0.00754112]
[1761258695227,0.42734136,110110.0,110100.0,0.03161772]
[1761258696832,0.57111789,110110.0,110100.0,0.03161772]
[1761258697722,0.71489442,110110.0,110100.0,0.00754112]
[1761258698128,0.57111789,110110.0,110100.0,0.00754112]
[1761258698320,0.89383789,110110.0,110100.0,0.00754112]
[1761258698829,0.89383789,110110.0,110100.0,0.00654112]
[1761258699024,0.89383789,110110.0,110100.0,0.00454112]
[1761258701530,0.57111789,110110.0,110100.0,0.00454112]
[1761258701732,0.89383789,110110.0,110100.0,0.00454112]
[1761258702030,1.03761442,110110.0,110100.0,0.00454112]
[1761258702232,1.43761442,110110.0,110090.0,0.14715395]
[1761258702423,0.70475306,110100.0,110090.0,0.05634215]
[1761258702623,0.70475306,110100.0,110090.0,0.0240766]
[1761258702924,0.0564,110090.0,110080.0,0.50806814]
[1761258703230,0.37896,110090.0,110080.0,0.65184467]
[1761258703430,0.52273653,110090.0,110080.0,0.65184467]
[1761258703629,0.37896,110090.0,110080.0,0.65184467]
[1761258704527,0.37896,110090.0,110080.0,0.7956212]
[1761258704832,0.37896,110090.0,110080.0,0.65184467]
[1761258705235,0.37896,110090.0,110080.0,0.7956212]
[1761258706931,0.14377653,110100.0,110080.0,0.7956212]
[1761258707132,0.06143435,110140.0,110120.0,0.0907872]
[1761258707435,0.01765,110150.0,110140.0,0.0907707]
[1761258707633,0.0612,110150.0,110140.0,0.97661724]
[1761258707833,0.0612,110150.0,110140.0,0.18448765]
[1761258708136,0.0612,110150.0,110140.0,0.44784827]
[1761258708336,0.0612,110150.0,110140.0,0.80864827]
[1761258709235,0.0612,110150.0,110140.0,0.77634712]
[1761258709434,0.0612,110150.0,110140.0,0.80864827]
[1761258710834,0.0612,110150.0,110140.0,0.70060646]
[1761258711136,0.0612,110150.0,110140.0,0.66830531]
[1761258712738,0.0612,110150.0,110140.0,0.67738767]
[1761258713940,0.0612,110150.0,110140.0,0.66830531]
[1761258714141,0.0612,110150.0,110140.0,0.64409942]
[1761258714631,0.0612,110150.0,110140.0,0.65317634]
[1761258714828,0.0612,110150.0,110140.0,0.64409942]
[1761258715033,0.03961,110150.0,110140.0,0.64409942]
[1761258715229,0.06192,110150.0,110140.0,0.66830531]
[1761258715633,0.06192,110150.0,110140.0,0.64409942]
[1761258718138,0.06192,110150.0,110140.0,0.96853942]
[1761258724040,0.01285,110160.0,110140.0,1.36853942]
[1761258724244,0.03481,110160.0,110150.0,0.63107335]
[1761258724449,0.05712,110160.0,110150.0,0.64409082]
[1761258725346,0.01285,110160.0,110150.0,0.64409082]
[1761258725957,0.01285,110160.0,110150.0,0.64506863]
[1761258726645,0.01285,110160.0,110150.0,0.46555738]
[1761258726849,0.01285,110160.0,110150.0,0.76734717]
[1761258727453,0.01285,110170.0,110160.0,0.0907539]
[1761258727640,0.01773,110190.0,110160.0,0.76533897]
[1761258727846,0.03489,110200.0,110190.0,0.0907292]
[1761258728042,0.03489,110200.0,110190.0,0.72947427]
[1761258728043,0.01293,110200.0,110190.0,0.72947427]
[1761258728444,0.03489,110200.0,110190.0,0.72947427]
[1761258728750,0.0572,110200.0,110190.0,0.7385366]
[1761258728957,0.0572,110200.0,110190.0,1.4601366]
[1761258729361,0.0572,110200.0,110190.0,1.45107427]
[1761258730953,0.0572,110200.0,110190.0,1.4510445]
[1761258731653,0.0572,110200.0,110190.0,1.46003254]
[1761258734953,0.0572,110200.0,110190.0,1.4510445]
[1761258735352,0.0572,110200.0,110190.0,1.15025471]
[1761258735550,0.0572,110200.0,110190.0,0.73456551]
[1761258735751,0.0572,110200.0,110190.0,1.14993461]
[1761258736455,0.0572,110200.0,110190.0,0.78913461]
[1761258737557,0.0572,110200.0,110190.0,0.46449461]
[1761258738149,0.4572,110200.0,110190.0,0.01296551]
[1761258738345,1.11878979,110200.0,110190.0,0.01296551]
[1761258738559,0.818,110200.0,110190.0,0.01296551]
[1761258738857,0.0572,110190.0,110180.0,0.3608]
[1761258739246,0.0572,110180.0,110170.0,0.4515386]
[1761258739955,0.4572,110180.0,110170.0,0.3608]
[1761258740258,0.4572,110180.0,110160.0,0.7761089]
[1761258740259,0.0572,110170.0,110160.0,0.7761138]
[1761258743860,0.01293,110170.0,110160.0,1.07690359]
[1761258749170,0.08149563,110200.0,110190.0,0.0907291]
[1761258749462,0.05721,110200.0,110190.0,0.4148891]
[1761258749665,0.05721,110200.0,110190.0,0.0907291]
[1761258749868,0.05721,110200.0,110190.0,0.4153291]
[1761258751671,0.05721,110200.0,110190.0,0.0907291]
[1761258751870,0.05721,110200.0,110190.0,0.4152891]
[1761258752070,0.05721,110200.0,110190.0,0.42839809]
[1761258752266,0.05721,110200.0,110190.0,0.10383809]
[1761258752564,0.05721,110200.0,110190.0,0.42827809]
[1761258753070,0.05721,110200.0,110190.0,0.10383809]
[1761258753272,0.05721,110200.0,110190.0,0.42827809]
[1761258753665,0.05721,110200.0,110190.0,0.78907809]
[1761258753870,0.05721,110200.0,110190.0,0.42827809]
[1761258754063,0.05721,110200.0,110190.0,0.4151691]
[1761258754264,0.05721,110200.0,110190.0,0.42828523]
[1761258756176,0.05721,110200.0,110190.0,0.10384523]
[1761258756384,1.11879979,110200.0,110190.0,0.01311613]
[1761258757175,1.11879979,110200.0,110170.0,0.79979988]
[1761258757176,0.05689,110180.0,110170.0,0.79979988]
[1761258757387,0.05689,110180.0,110170.0,0.79984618]
[1761258758886,0.05689,110180.0,110170.0,0.7757856]
[1761258761087,0.05689,110180.0,110170.0,0.68504]
[1761258761491,0.05689,110180.0,110170.0,0.7757856]
[1761258769692,0.05689,110180.0,110170.0,0.4515456]
[1761258769991,0.05689,110180.0,110170.0,0.7753056]
[1761258774800,0.05689,110180.0,110170.0,0.91886801]
[1761258775099,0.05689,110180.0,110170.0,0.7753056]
[1761258775299,0.05689,110180.0,110170.0,0.91886801]
[1761258777595,0.05689,110180.0,110170.0,0.7753056]
[1761258779604,0.05689,110180.0,110170.0,0.68456]
[1761258779806,0.05689,110180.0,110170.0,0.79936618]
[1761258780202,0.01317,110170.0,110160.0,0.47560738]
[1761258780402,0.01317,110170.0,110160.0,0.34718058]
[1761258780403,0.20150241,110170.0,110160.0,0.34718058]
[1761258780604,0.57230241,110170.0,110150.0,10.83112353]
[1761258780801,0.05794,110160.0,110150.0,10.70806058]
[1761258780999,0.05794,110160.0,110150.0,10.79882268]
[1761258781400,0.05794,110160.0,110150.0,10.7747621]
[1761258781901,0.01317,110160.0,110150.0,10.94338509]
[1761258782411,0.05794,110160.0,110150.0,10.94238509]
[1761258782706,0.05794,110160.0,110150.0,10.94254509]
[1761258784411,0.05794,110160.0,110150.0,10.79898268]
[1761258784711,0.05794,110160.0,110150.0,10.94254509]
[1761258785506,0.05794,110160.0,110150.0,10.91848451]
[1761258785714,0.05794,110160.0,110150.0,10.9426988]
[1761258786803,0.05794,110160.0,110150.0,10.61938601]
[1761258787005,0.05794,110160.0,110150.0,10.94270601]
[1761258787606,0.20154962,110160.0,110150.0,10.94270601]
[1761258787812,0.05794,110160.0,110150.0,10.94270601]
[1761258788400,0.05794,110160.0,110150.0,10.79909639]
[1761258788713,0.20154962,110160.0,110150.0,10.94262601]
[1761258788913,0.20154962,110160.0,110150.0,10.61938601]
[1761258789107,0.20154962,110160.0,110150.0,10.94250601]
[1761258789707,0.05794,110160.0,110150.0,10.94250601]
[1761258789907,0.20154962,110160.0,110150.0,10.94250601]
[1761258790105,0.20154962,110160.0,110150.0,10.94254601]
[1761258790809,0.20154962,110160.0,110150.0,0.94254601]
[1761258792723,0.20154962,110160.0,110150.0,0.91833172]
[1761258793116,0.20154962,110160.0,110150.0,0.59517172]
[1761258793316,0.20154962,110160.0,110150.0,0.7745221]
[1761258793724,0.20154962,110160.0,110150.0,0.91813172]
[1761258795714,0.40770202,110170.0,110150.0,0.91813172]
[1761258795715,0.02445807,110170.0,110160.0,0.0907538]
[1761258795920,0.01317,110180.0,110160.0,0.68032039]
[1761258796121,0.05794,110180.0,110170.0,0.61935541]
[1761258796320,0.3827,110180.0,110170.0,0.61935541]
[1761258797122,0.36019,110180.0,110170.0,0.61935541]
[1761258798727,0.35019,110180.0,110170.0,0.61935541]
[1761258799730,0.3727,110180.0,110170.0,0.61935541]
[1761258800729,0.04794,110180.0,110170.0,0.61935541]
[1761258801229,0.01317,110190.0,110180.0,0.0907373]
[1761258801529,0.35995,110190.0,110180.0,0.76295129]
[1761258801928,0.38246,110190.0,110180.0,0.76295129]
[1761258802423,0.38242,110190.0,110180.0,0.73875654]
[1761258802627,0.38242,110190.0,110180.0,0.76295129]
[1761258803020,0.38238,110190.0,110180.0,0.76295129]
[1761258803421,0.38238,110190.0,110180.0,0.73875654]
[1761258804726,0.38234,110190.0,110180.0,0.73875654]
[1761258806335,0.52594962,110190.0,110180.0,0.0907373]
[1761258806635,0.52594962,110190.0,110180.0,0.23434692]
[1761258806829,0.52594962,110190.0,110180.0,0.0907373]
[1761258807036,0.52594962,110190.0,110180.0,0.23434692]
[1761258808330,0.52570962,110190.0,110180.0,0.59514692]
[1761258809835,0.52570962,110190.0,110180.0,0.4515373]
[1761258810033,0.52570962,110190.0,110180.0,0.59514692]
[1761258811937,0.52570962,110190.0,110170.0,0.61934207]
[1761258812134,0.52570962,110190.0,110160.0,0.53671077]
[1761258812135,0.05752,110170.0,110160.0,0.47574255]
[1761258812337,0.52504962,110170.0,110160.0,0.3608]
[1761258812645,0.52504962,110170.0,110150.0,0.61936017]
[1761258812646,0.05752,110160.0,110150.0,0.61936017]
[1761258812834,0.20112962,110160.0,110150.0,0.59517162]
[1761258814036,0.05752,110160.0,110150.0,0.59517162]
[1761258814634,0.05752,110160.0,110150.0,0.59617162]
[1761258815245,0.05752,110160.0,110150.0,0.59517162]
[1761258820145,0.05752,110160.0,110150.0,0.451562]
[1761258820346,0.05752,110160.0,110150.0,0.59517162]
[1761258824547,0.05752,110160.0,110150.0,0.451562]
[1761258824740,0.05752,110160.0,110150.0,0.59517162]
[1761258826544,0.20112962,110160.0,110150.0,0.59517162]
[1761258833645,0.20112962,110160.0,110150.0,0.3608]
[1761258834045,0.20112962,110160.0,110150.0,0.59517162]
[1761258834249,0.52424962,110160.0,110150.0,0.59517162]
[1761258834742,0.52424962,110160.0,110150.0,0.14360962]
[1761258836347,0.05829,110150.0,110140.0,0.62390784]
[1761258836553,0.20189962,110150.0,110140.0,0.62390784]
[1761258836752,0.20189962,110150.0,110140.0,0.59971309]
[1761258838252,0.52485962,110150.0,110140.0,0.59971309]
[1761258838955,0.52485962,110150.0,110140.0,0.00453947]
[1761258839158,0.88565962,110150.0,110140.0,0.00453947]
[1761258839463,0.91011769,110150.0,110140.0,0.00453947]
[1761258841260,0.94257123,110150.0,110140.0,0.00453947]
[1761258841652,0.94257123,110150.0,110130.0,0.02419475]
[1761258841653,1.48618085,110150.0,110130.0,0.02419475]
[1761258841851,1.48618085,110150.0,110120.0,0.39310115]
[1761258841852,0.05829,110120.0,110110.0,0.02419475]
[1761258842155,1.03850594,110120.0,110110.0,0.02419475]
[1761258842347,1.03850594,110120.0,110100.0,0.03684227]
[1761258842348,1.43850594,110120.0,110100.0,0.03684227]
[1761258842547,0.58718235,110110.0,110100.0,0.00454112]
[1761258843453,0.58718235,110110.0,110100.0,0.00754112]
[1761258843961,0.58718235,110110.0,110080.0,0.59533641]
[1761258843962,0.05829,110090.0,110080.0,0.59533641]
[1761258844260,0.38141,110090.0,110080.0,0.59533641]
[1761258845161,0.05829,110090.0,110080.0,0.59533641]
[1761258845358,0.38149,110090.0,110080.0,0.73894603]
[1761258845657,0.38345,110090.0,110080.0,0.73894603]
[1761258846361,0.38345,110090.0,110080.0,0.59533641]
[1761258846764,0.38245,110090.0,110080.0,0.59551624]
[1761258847063,0.38245,110090.0,110080.0,0.36091179]
[1761258847267,0.38245,110090.0,110080.0,0.45173149]
[1761258847565,0.38245,110090.0,110080.0,0.36091179]
[1761258848458,0.38245,110090.0,110080.0,0.45173149]
[1761258850165,0.38229,110090.0,110080.0,0.45173149]
[1761258855063,0.05929,110090.0,110080.0,0.45173149]
[1761258855264,0.38217,110090.0,110080.0,0.45173149]
[1761258856270,0.38217,110090.0,110080.0,0.59552094]
[1761258856970,0.05929,110090.0,110080.0,0.59552094]
[1761258857170,0.38213,110090.0,110080.0,0.59552094]
[1761258858568,0.05929,110090.0,110080.0,0.59552094]
[1761258858874,0.38209,110090.0,110080.0,0.59552094]
[1761258861667,0.38189,110090.0,110080.0,0.59552094]
[1761258864478,0.38181,110090.0,110080.0,0.59552094]
[1761258865479,0.01396,110090.0,110080.0,0.59552094]
[1761258865671,0.33644,110090.0,110080.0,0.59552094]
[1761258865871,0.37926,110090.0,110080.0,0.59552094]
[1761258866272,0.37826,110090.0,110080.0,0.59552094]
[1761258869082,0.37926,110090.0,110080.0,0.59552094]
[1761258869581,0.37826,110090.0,110080.0,0.59552094]
[1761258870283,0.37926,110090.0,110080.0,0.59552094]
[1761258870482,0.3791,110090.0,110080.0,0.59552094]
[1761258870674,0.3781,110090.0,110080.0,0.59552094]
[1761258871479,0.3781,110090.0,110080.0,0.62782209]
[1761258872475,0.37802,110090.0,110080.0,0.62782209]
[1761258873883,0.37902,110090.0,110080.0,0.62782209]
[1761258874684,0.37902,110090.0,110080.0,0.26702209]
[1761258874878,0.37902,110090.0,110080.0,0.98862209]
[1761258875985,0.05678,110090.0,110080.0,0.98862209]
[1761258876281,0.37902,110090.0,110080.0,0.98862209]
[1761258880484,0.05678,110090.0,110080.0,0.98862209]
[1761258880685,0.37882,110090.0,110080.0,0.98862209]
[1761258883584,0.37882,110090.0,110080.0,1.03702042]
[1761258884586,0.37862,110090.0,110080.0,1.03702042]
[1761258885386,0.37762,110090.0,110080.0,1.03702042]
[1761258886188,0.37862,110090.0,110080.0,1.03702042]
[1761258887890,0.37854,110090.0,110080.0,1.03702042]
[1761258888091,0.01396,110090.0,110080.0,1.03702042]
[1761258888291,0.001,110090.0,110080.0,1.43702042]
[1761258888485,0.001,110090.0,110080.0,1.40471927]
[1761258888685,0.001,110090.0,110080.0,1.72647927]
[1761258889190,0.33472,110100.0,110080.0,1.72647927]
[1761258889191,0.379,110100.0,110090.0,0.0908114]
[1761258889392,0.379,110100.0,110090.0,0.62781554]
[1761258890891,0.379,110100.0,110090.0,0.62881554]
[1761258891689,0.379,110100.0,110090.0,0.62781554]
[1761258892392,0.37896,110100.0,110090.0,0.62781554]